bitfinex/quotes_BTCUSD_20221001
["timestamp","ask_amount","ask_price","bid_price","bid_amount"]
[1664630285031,0.67581658,19353.0,19351.0,0.84908391]
[1664630286196,0.6255768,19353.0,19351.0,0.84908391]
[1664630286407,0.5725768,19353.0,19351.0,0.84908391]
[1664630287083,0.6515768,19353.0,19351.0,0.84908391]
[1664630287496,0.05,19352.0,19351.0,0.84908391]
[1664630287715,0.6515768,19353.0,19351.0,0.84908391]
[1664630288170,0.05,19352.0,19351.0,0.84908391]
[1664630288375,0.5725768,19353.0,19351.0,0.84908391]
[1664630288628,0.68053446,19353.0,19351.0,0.84908391]
[1664630289106,1.01789146,19353.0,19351.0,0.84908391]
[1664630290490,0.93889146,19353.0,19351.0,0.84908391]
[1664630291262,0.05,19352.0,19351.0,0.84908391]
[1664630291479,0.05,19352.0,19351.0,0.64098544]
[1664630291725,0.09339338,19352.0,19351.0,0.129254]
[1664630292601,0.93889146,19353.0,19351.0,0.129254]
[1664630293282,0.99189146,19353.0,19351.0,0.129254]
[1664630294841,0.93889146,19353.0,19351.0,0.129254]
[1664630295058,0.05,19352.0,19351.0,0.129254]
[1664630295281,0.13809338,19352.0,19351.0,0.129254]
[1664630295512,0.08809338,19352.0,19351.0,0.129254]
[1664630297171,0.14509338,19352.0,19351.0,0.129254]
[1664630297440,0.057,19352.0,19351.0,0.129254]
[1664630298377,0.93889146,19353.0,19351.0,0.129254]
[1664630299282,0.99189146,19353.0,19351.0,0.129254]
[1664630300175,0.05,19352.0,19351.0,0.129254]
[1664630300409,0.93889146,19353.0,19351.0,0.129254]
[1664630300919,0.08309338,19352.0,19351.0,0.129254]
[1664630301148,0.13309338,19352.0,19350.0,0.35405914]
[1664630301372,0.77885238,19352.0,19350.0,0.64099144]
[1664630302028,0.75508522,19351.0,19347.0,0.36880838]
[1664630302256,0.05,19349.0,19348.0,0.129272]
[1664630302501,0.05,19349.0,19347.0,0.75126382]
[1664630302732,0.20460293,19349.0,19347.0,0.88054382]
[1664630302958,0.05,19348.0,19347.0,0.64101144]
[1664630303190,0.1066744,19348.0,19347.0,0.51173144]
[1664630303309,0.1066744,19348.0,19346.0,0.131386]
[1664630303541,0.05,19347.0,19346.0,0.0021]
[1664630303770,0.055,19347.0,19346.0,0.0021]
[1664630305110,0.113,19347.0,19346.0,0.0021]
[1664630305322,0.113,19347.0,19346.0,0.00532734]
[1664630306040,0.063,19347.0,19346.0,0.00532734]
[1664630306474,0.005,19347.0,19346.0,0.00532734]
[1664630307162,0.072,19347.0,19346.0,0.00532734]
[1664630307390,0.072,19347.0,19346.0,0.0021]
[1664630308584,0.005,19347.0,19346.0,0.0021]
[1664630309246,0.12497,19347.0,19346.0,0.0021]
[1664630310186,0.42497,19347.0,19346.0,0.0021]
[1664630310417,0.69347932,19347.0,19346.0,0.0021]
[1664630311236,0.73347932,19347.0,19346.0,0.0021]
[1664630312691,0.69347932,19347.0,19346.0,0.0021]
[1664630313122,0.73347932,19347.0,19346.0,0.0021]
[1664630313364,1.24521076,19347.0,19346.0,0.0021]
[1664630314333,1.20521076,19347.0,19346.0,0.0021]
[1664630315237,1.24521076,19347.0,19346.0,0.0021]
[1664630316539,1.20521076,19347.0,19346.0,0.0021]
[1664630316979,0.86970144,19347.0,19346.0,0.0021]
[1664630317203,0.90970144,19347.0,19346.0,0.0021]
[1664630317419,1.24521076,19347.0,19346.0,0.0021]
[1664630317644,0.90970144,19347.0,19346.0,0.0021]
[1664630317869,0.60970144,19347.0,19346.0,0.0021]
[1664630318090,0.90970144,19347.0,19346.0,0.0021]
[1664630318326,0.04,19347.0,19346.0,0.0021]
[1664630318552,1.2194094,19348.0,19346.0,0.05633]
[1664630318553,0.645886,19348.0,19346.0,0.05633]
[1664630318782,0.129123,19348.0,19346.0,0.05633]
[1664630318999,0.387547,19348.0,19346.0,0.05633]
[1664630319217,0.442547,19348.0,19346.0,0.0021]
[1664630319440,0.55625487,19348.0,19346.0,0.0021]
[1664630319961,0.184123,19348.0,19346.0,0.0021]
[1664630320183,0.313339,19348.0,19346.0,0.0021]
[1664630320409,0.055,19348.0,19346.0,0.51383144]
[1664630320634,0.129117,19349.0,19346.0,0.91900366]
[1664630321309,0.183117,19349.0,19346.0,0.96892238]
[1664630321565,0.054,19349.0,19348.0,0.407811]
[1664630321799,0.054,19349.0,19348.0,2.94347864]
[1664630322022,0.054,19349.0,19348.0,1.18566764]
[1664630322255,0.054,19349.0,19348.0,1.25505176]
[1664630322506,0.387503,19355.0,19348.0,1.35505176]
[1664630322729,0.59234233,19355.0,19349.0,1.67650376]
[1664630322953,0.59234233,19355.0,19350.0,0.51173144]
[1664630323183,0.39034817,19354.0,19350.0,0.51173144]
[1664630323624,0.05,19353.0,19350.0,0.51173144]
[1664630324099,0.05,19353.0,19350.0,0.64099244]
[1664630324559,0.87584323,19354.0,19350.0,0.64099244]
[1664630324776,0.1316609,19353.0,19350.0,0.64099244]
[1664630324998,0.2108399,19353.0,19350.0,0.64099244]
[1664630325225,0.129094,19352.0,19350.0,0.64099244]
[1664630327220,0.184094,19352.0,19350.0,0.64099244]
[1664630328570,0.129094,19352.0,19350.0,0.64099244]
[1664630329257,0.184094,19352.0,19350.0,0.64099244]
[1664630330046,0.184094,19352.0,19351.0,0.05]
[1664630330513,0.129094,19352.0,19351.0,0.05]
[1664630330727,0.129094,19352.0,19350.0,0.84134778]
[1664630330938,0.129094,19352.0,19350.0,1.1768571]
[1664630331356,0.184094,19352.0,19350.0,1.1768571]
[1664630331566,0.055,19352.0,19351.0,0.89724076]
[1664630331796,0.055,19352.0,19351.0,1.35505176]
[1664630332446,0.129076,19356.0,19351.0,1.35505176]
[1664630332663,0.129076,19356.0,19352.0,0.84724076]
[1664630332874,0.56670694,19357.0,19355.0,0.05]
[1664630332875,0.17923394,19357.0,19355.0,0.05]
[1664630333093,0.17923394,19357.0,19353.0,0.51173144]
[1664630333307,0.079,19356.0,19353.0,0.51173144]
[1664630334612,0.558218,19357.0,19353.0,0.51173144]
[1664630334834,0.67748341,19357.0,19353.0,0.64097044]
[1664630335342,0.75648341,19357.0,19353.0,0.97647976]
[1664630335996,0.45648341,19357.0,19353.0,0.97647976]
[1664630336435,0.58232274,19357.0,19353.0,0.97647976]
[1664630337099,0.58232274,19357.0,19354.0,0.33550932]
[1664630337324,0.45648341,19357.0,19354.0,0.129234]
[1664630337764,0.337218,19357.0,19356.0,0.05]
[1664630337990,0.208152,19357.0,19354.0,0.129234]
[1664630338231,0.0208152,19356.0,19354.0,0.129234]
[1664630339198,0.0768152,19356.0,19354.0,0.129234]
[1664630340342,0.69444693,19356.0,19354.0,0.129234]
[1664630340798,0.63844693,19356.0,19354.0,0.129234]
[1664630341248,0.71744693,19356.0,19354.0,0.129234]
[1664630342178,0.97576393,19356.0,19354.0,0.129234]
[1664630342408,0.35365687,19355.0,19350.0,0.129259]
[1664630342651,0.33401133,19354.0,19351.0,0.51173144]
[1664630343136,0.129172,19354.0,19351.0,0.51173144]
[1664630343355,0.208172,19354.0,19351.0,0.71916164]
[1664630343800,0.208172,19354.0,19351.0,0.84841364]
[1664630344060,0.3968185,19354.0,19351.0,0.84841364]
[1664630344287,0.6551625,19354.0,19351.0,0.84841364]
[1664630344503,0.5761625,19354.0,19351.0,0.64098344]
[1664630344936,0.1886465,19354.0,19351.0,0.64098344]
[1664630345165,0.516606,19354.0,19351.0,0.64098344]
[1664630345393,0.595606,19354.0,19351.0,0.64091358]
[1664630345845,0.05,19353.0,19351.0,0.64091358]
[1664630346065,0.80044533,19354.0,19351.0,0.64091358]
[1664630346295,0.079,19354.0,19352.0,0.33550932]
[1664630346735,0.70512673,19356.0,19352.0,0.46475632]
[1664630346736,0.129079,19355.0,19352.0,0.46475632]
[1664630346958,0.258247,19355.0,19354.0,0.05]
[1664630347182,0.129168,19355.0,19354.0,0.05]
[1664630347411,0.079,19355.0,19354.0,0.05]
[1664630347895,0.079,19355.0,19353.0,0.12924]
[1664630348126,0.079,19355.0,19353.0,0.64097144]
[1664630348585,0.57587373,19356.0,19353.0,0.64097144]
[1664630348586,0.70503773,19356.0,19354.0,0.05]
[1664630349259,0.70503773,19356.0,19353.0,0.64097144]
[1664630349484,0.75803773,19356.0,19353.0,0.64097144]
[1664630349710,0.8931093,19356.0,19353.0,0.64097144]
[1664630349935,0.75803773,19356.0,19353.0,0.64097144]
[1664630350458,0.129166,19355.0,19353.0,0.64097144]
[1664630351346,0.208166,19355.0,19353.0,0.64097144]
[1664630352057,0.766497,19355.0,19352.0,0.129247]
[1664630352301,0.0208166,19354.0,19352.0,0.129247]
[1664630352519,0.4083386,19354.0,19351.0,0.21448113]
[1664630352759,1.0541226,19354.0,19351.0,0.21448113]
[1664630352982,0.129087,19354.0,19351.0,0.21448113]
[1664630353223,0.129182,19353.0,19351.0,0.34373613]
[1664630353906,0.129182,19353.0,19352.0,0.05]
[1664630354384,0.208087,19354.0,19352.0,0.38550932]
[1664630354640,0.31754373,19356.0,19353.0,0.407811]
[1664630354877,0.31754373,19356.0,19353.0,0.05]
[1664630354878,0.516581,19355.0,19353.0,0.05]
[1664630355100,0.516581,19355.0,19353.0,0.17924]
[1664630355329,0.387502,19355.0,19353.0,0.17924]
[1664630355551,0.387502,19355.0,19353.0,0.12924]
[1664630355552,0.45800657,19355.0,19353.0,0.12924]
[1664630355778,0.387502,19355.0,19353.0,0.12924]
[1664630357158,1.033245,19355.0,19352.0,0.129249]
[1664630357392,0.387521,19354.0,19352.0,0.129249]
[1664630358161,0.387521,19354.0,19351.0,0.21448113]
[1664630358162,0.90421,19354.0,19351.0,0.34373613]
[1664630358369,0.090421,19353.0,19351.0,0.85546757]
[1664630358587,0.477962,19353.0,19351.0,0.85546757]
[1664630359041,0.387541,19353.0,19351.0,0.85546757]
[1664630359502,0.466541,19353.0,19351.0,0.85546757]
[1664630359933,0.466541,19353.0,19351.0,0.64098644]
[1664630360725,0.387541,19353.0,19351.0,0.64098644]
[1664630360944,0.387541,19353.0,19352.0,0.05]
[1664630361169,0.387541,19353.0,19351.0,0.64098644]
[1664630361390,0.466541,19353.0,19351.0,0.64098644]
[1664630362745,0.387541,19353.0,19351.0,0.64098644]
[1664630363395,0.466541,19353.0,19351.0,0.64098644]
[1664630364906,0.387541,19353.0,19351.0,0.64098644]
[1664630365342,0.387541,19353.0,19352.0,0.05]
[1664630365548,0.466541,19353.0,19351.0,0.64098644]
[1664630366114,0.466541,19353.0,19352.0,0.38550932]
[1664630366115,0.079,19353.0,19352.0,0.38550932]
[1664630366351,0.079,19353.0,19352.0,1.92076858]
[1664630366592,5.27123567,19361.0,19355.0,0.1]
[1664630366593,0.22926233,19360.0,19355.0,0.1]
[1664630366829,0.22926233,19360.0,19356.0,0.90635544]
[1664630367151,0.22926233,19360.0,19357.0,1.33338044]
[1664630367152,0.18869653,19360.0,19357.0,1.33338044]
[1664630367374,0.18869653,19360.0,19358.0,0.51173144]
[1664630367806,0.10139994,19361.0,19359.0,0.05]
[1664630368027,0.10139994,19361.0,19360.0,0.05]
[1664630368243,0.10139994,19361.0,19358.0,0.51173144]
[1664630368244,0.12979018,19361.0,19358.0,0.51173144]
[1664630368475,0.10139994,19362.0,19358.0,0.84635544]
[1664630368690,0.30623927,19362.0,19358.0,0.51173144]
[1664630368909,0.0405658,19361.0,19358.0,0.51173144]
[1664630369122,0.35511344,19362.0,19358.0,0.51173144]
[1664630369334,0.35511344,19362.0,19358.0,0.58973144]
[1664630369335,0.0405658,19361.0,19358.0,0.58973144]
[1664630369629,0.32449048,19361.0,19358.0,0.078]
[1664630369795,0.11965115,19361.0,19358.0,0.078]
[1664630370015,0.48794401,19361.0,19358.0,0.078]
[1664630370237,0.54877815,19361.0,19358.0,0.078]
[1664630370455,0.67781915,19361.0,19358.0,0.078]
[1664630370675,0.129132,19360.0,19357.0,0.1956787]
[1664630371127,0.258179,19360.0,19357.0,0.1956787]
[1664630371352,0.258179,19360.0,19357.0,0.4028947]
[1664630371568,0.516448,19360.0,19357.0,0.4028947]
[1664630371792,0.387311,19360.0,19357.0,0.4028947]
[1664630372252,0.129139,19359.0,19357.0,0.4028947]
[1664630372716,0.129139,19359.0,19357.0,0.3248947]
[1664630373148,0.129139,19359.0,19357.0,0.129216]
[1664630373363,0.129139,19359.0,19357.0,0.207216]
[1664630374783,0.129139,19359.0,19357.0,0.129216]
[1664630375176,0.645494,19360.0,19357.0,0.129216]
[1664630375395,0.645494,19360.0,19357.0,0.207216]
[1664630375636,0.129047,19360.0,19357.0,0.207216]
[1664630375851,0.516446,19360.0,19357.0,0.207216]
[1664630376428,0.258182,19360.0,19357.0,0.207216]
[1664630376693,0.258182,19360.0,19357.0,0.129216]
[1664630377540,0.258182,19360.0,19357.0,0.207216]
[1664630377782,0.129035,19361.0,19358.0,0.84635544]
[1664630378021,0.23974413,19362.0,19359.0,0.51173144]
[1664630378176,0.23974413,19362.0,19359.0,0.76513244]
[1664630379030,0.36877213,19362.0,19359.0,0.76513244]
[1664630379446,0.36877213,19362.0,19359.0,0.84313244]
[1664630380738,0.36877213,19362.0,19359.0,0.76513244]
[1664630381629,0.36877213,19362.0,19359.0,0.84313244]
[1664630382643,0.36877213,19362.0,19359.0,0.76513244]
[1664630383099,0.44438374,19362.0,19359.0,0.76513244]
[1664630383523,0.44438374,19362.0,19359.0,0.84313244]
[1664630383750,0.36877213,19362.0,19359.0,0.89313244]
[1664630383960,0.36877213,19362.0,19359.0,1.17775644]
[1664630384266,0.36877213,19362.0,19359.0,0.84313244]
[1664630384635,0.36877213,19362.0,19359.0,0.76513244]
[1664630385613,0.36877213,19362.0,19359.0,0.84313244]
[1664630385843,0.36877213,19362.0,19359.0,1.17775644]
[1664630386928,0.36877213,19362.0,19359.0,1.09975644]
[1664630387378,0.64922297,19362.0,19359.0,1.09975644]
[1664630387635,0.57350364,19362.0,19359.0,0.84313244]
[1664630388509,0.83174064,19362.0,19359.0,0.84313244]
[1664630389025,0.83174064,19362.0,19359.0,0.76513244]
[1664630389223,0.07561291,19361.0,19359.0,0.76513244]
[1664630389456,0.50464791,19361.0,19359.0,0.63593144]
[1664630389671,0.50464791,19361.0,19359.0,0.71393144]
[1664630389890,0.20464791,19361.0,19359.0,0.71393144]
[1664630390183,0.59202691,19361.0,19359.0,0.71393144]
[1664630390844,0.59202691,19361.0,19359.0,0.63593144]
[1664630391305,0.72106191,19361.0,19359.0,0.63593144]
[1664630391521,0.0645449,19360.0,19357.0,0.434624]
[1664630391757,0.0645449,19360.0,19359.0,0.078]
[1664630391983,0.33368291,19361.0,19359.0,0.078]
[1664630392200,0.387399,19360.0,19359.0,0.078]
[1664630392892,0.20464791,19361.0,19359.0,0.51173144]
[1664630393119,0.129035,19361.0,19359.0,0.77014744]
[1664630393569,0.129035,19361.0,19359.0,0.84814744]
[1664630394025,0.129035,19361.0,19360.0,0.05]
[1664630394264,0.129035,19361.0,19359.0,0.84814744]
[1664630394495,0.129035,19361.0,19360.0,0.98117018]
[1664630394736,0.23974413,19362.0,19360.0,1.15475744]
[1664630394964,0.23974413,19362.0,19360.0,0.82013344]
[1664630395191,0.23974413,19362.0,19361.0,0.05]
[1664630396115,0.36877213,19362.0,19361.0,0.05]
[1664630396341,0.36877213,19362.0,19360.0,0.84713344]
[1664630396591,0.36877213,19362.0,19360.0,1.18175744]
[1664630396856,0.36877213,19362.0,19360.0,0.84713344]
[1664630397104,0.36877213,19362.0,19360.0,0.77013344]
[1664630397329,0.36877213,19362.0,19361.0,0.05]
[1664630398018,0.129028,19362.0,19361.0,0.05]
[1664630398254,0.129028,19362.0,19360.0,0.84713344]
[1664630398488,0.129028,19362.0,19360.0,1.18175744]
[1664630398931,0.129028,19362.0,19360.0,0.77013344]
[1664630399189,0.129028,19362.0,19361.0,0.05]
[1664630400131,0.129028,19362.0,19360.0,0.84813344]
[1664630400392,0.516348,19364.0,19361.0,0.05]
[1664630400613,0.516348,19364.0,19361.0,0.308388]
[1664630401058,0.516348,19364.0,19363.0,0.05]
[1664630401295,0.387327,19364.0,19361.0,0.258388]
[1664630401520,0.516348,19364.0,19361.0,0.258388]
[1664630401752,0.59936508,19364.0,19361.0,0.325388]
[1664630401989,0.05,19363.0,19361.0,0.325388]
[1664630402234,0.47025708,19364.0,19361.0,0.325388]
[1664630402464,0.129113,19363.0,19361.0,0.325388]
[1664630402691,0.687337,19363.0,19361.0,0.325388]
[1664630402926,0.0687337,19362.0,19361.0,0.129194]
[1664630403376,0.0687337,19362.0,19360.0,0.129203]
[1664630403604,0.05,19361.0,19360.0,0.129203]
[1664630403826,0.0308067,19361.0,19360.0,0.129203]
[1664630404059,0.3308067,19361.0,19360.0,0.129203]
[1664630404310,0.0308067,19361.0,19360.0,0.129203]
[1664630404576,0.3308067,19361.0,19360.0,0.129203]
[1664630404816,0.52006374,19361.0,19358.0,0.129216]
[1664630405037,0.41749264,19360.0,19358.0,0.129216]
[1664630405735,0.41749264,19360.0,19358.0,0.207216]
[1664630406179,0.67557664,19360.0,19358.0,0.207216]
[1664630406414,0.05,19359.0,19358.0,0.207216]
[1664630406640,0.11955766,19359.0,19358.0,0.207216]
[1664630406875,1.19210464,19360.0,19358.0,0.64094744]
[1664630406876,0.12913864,19360.0,19358.0,0.64094744]
[1664630407123,0.12913864,19360.0,19359.0,0.407811]
[1664630407350,0.12913864,19360.0,19358.0,0.97557144]
[1664630407581,0.12913864,19360.0,19359.0,0.05]
[1664630407818,0.14613864,19360.0,19359.0,0.126]
[1664630408965,9.664e-05,19360.0,19359.0,1.29652082]
[1664630409081,9.664e-05,19360.0,19359.0,1.60433182]
[1664630409316,0.06667581,19360.0,19359.0,1.78346982]
[1664630409675,0.06667581,19360.0,19359.0,1.55365882]
[1664630409879,0.06667581,19360.0,19359.0,1.45365882]
[1664630410099,0.06667581,19360.0,19359.0,1.06903482]
[1664630410496,0.06667581,19360.0,19359.0,0.93989682]
[1664630410928,0.06667581,19360.0,19359.0,0.86189682]
[1664630411764,0.06667581,19360.0,19359.0,0.82973968]
[1664630413306,0.27151514,19360.0,19359.0,0.31800824]
[1664630413544,0.06667581,19360.0,19358.0,0.258431]
[1664630413767,0.19571781,19360.0,19359.0,0.078]
[1664630414409,0.65838417,19360.0,19359.0,0.078]
[1664630414617,0.65838417,19360.0,19359.0,0.07791053]
[1664630414974,0.65838417,19360.0,19358.0,0.129216]
[1664630415419,0.591805,19360.0,19358.0,0.129216]
[1664630415653,0.591805,19360.0,19358.0,0.207216]
[1664630415866,0.06657917,19359.0,19358.0,0.207216]
[1664630416084,0.06657917,19359.0,19358.0,1.77513751]
[1664630416303,0.06657917,19359.0,19358.0,2.13294851]
[1664630416763,0.06657917,19359.0,19358.0,2.05494851]
[1664630417646,0.06657917,19359.0,19358.0,1.77513751]
[1664630418288,0.06657917,19359.0,19358.0,2.13294851]
[1664630418731,0.06657917,19359.0,19358.0,1.82513751]
[1664630418969,0.06657917,19359.0,19358.0,2.10494851]
[1664630419645,0.06657917,19359.0,19358.0,2.18294851]
[1664630420325,0.06657917,19359.0,19358.0,2.34171951]
[1664630420828,0.06657917,19359.0,19358.0,2.69953051]
[1664630421054,0.06657917,19359.0,19358.0,2.62153051]
[1664630421715,0.06657917,19359.0,19358.0,2.69953051]
[1664630422828,0.06627447,19359.0,19358.0,2.64953051]
[1664630423055,0.06627447,19359.0,19358.0,1.69713751]
[1664630423304,0.06627447,19359.0,19358.0,2.05494851]
[1664630423533,0.2711138,19359.0,19358.0,0.85797151]
[1664630423756,0.06627447,19359.0,19358.0,0.93597151]
[1664630424886,0.06627447,19359.0,19358.0,0.42424007]
[1664630425114,0.08581578,19359.0,19358.0,0.42424007]
[1664630425345,0.08581578,19359.0,19358.0,0.078]
[1664630425565,0.08581578,19359.0,19357.0,0.12922]
[1664630425794,0.23795578,19359.0,19358.0,0.077]
[1664630426011,0.42995831,19359.0,19358.0,0.077]
[1664630426229,0.49623278,19359.0,19358.0,0.077]
[1664630426451,1.09623278,19359.0,19358.0,0.077]
[1664630426674,0.49623278,19359.0,19358.0,0.077]
[1664630427197,0.47323278,19359.0,19358.0,0.077]
[1664630427440,0.05,19358.0,19357.0,0.12922]
[1664630427665,0.05,19358.0,19356.0,0.129225]
[1664630427816,0.05036915,19358.0,19356.0,0.64095644]
[1664630428036,0.43780615,19358.0,19356.0,0.129225]
[1664630429399,1.3,19357.0,19356.0,0.129225]
[1664630429520,0.387475,19356.0,19354.0,0.129239]
[1664630429732,0.387475,19356.0,19353.0,0.129244]
[1664630429733,0.05,19355.0,19353.0,0.129244]
[1664630429965,0.05,19354.0,19353.0,0.64097544]
[1664630430172,0.05,19354.0,19352.0,0.129254]
[1664630430397,0.25483933,19354.0,19352.0,0.129254]
[1664630430628,0.129174,19354.0,19352.0,0.129254]
[1664630430863,0.05,19353.0,19352.0,0.129254]
[1664630431436,0.06627447,19353.0,19352.0,0.129254]
[1664630431882,0.08927447,19353.0,19352.0,0.205254]
[1664630433020,0.08927447,19353.0,19352.0,1.28385375]
[1664630433261,0.06627447,19353.0,19352.0,1.88427313]
[1664630433485,0.06627447,19353.0,19352.0,1.89167313]
[1664630433730,0.06627447,19353.0,19352.0,1.96967313]
[1664630434172,0.06627447,19353.0,19352.0,2.35722913]
[1664630434619,0.129056,19359.0,19352.0,2.35722913]
[1664630434929,0.33389533,19359.0,19355.0,0.1]
[1664630435087,0.129056,19359.0,19355.0,0.66173144]
[1664630435776,0.142056,19359.0,19356.0,0.12923]
[1664630436263,0.023,19359.0,19356.0,0.12923]
[1664630437176,0.12914064,19360.0,19358.0,0.05]
[1664630437394,0.12914064,19360.0,19358.0,0.129215]
[1664630437857,0.13614064,19360.0,19358.0,0.196215]
[1664630439075,0.13614064,19360.0,19359.0,0.84534758]
[1664630439076,9.664e-05,19360.0,19359.0,0.84534758]
[1664630439301,9.664e-05,19360.0,19359.0,0.51173144]
[1664630439748,9.664e-05,19360.0,19359.0,0.58773144]
[1664630439972,0.02009664,19360.0,19359.0,0.58773144]
[1664630440878,0.02009664,19360.0,19359.0,0.65942608]
[1664630441108,9.664e-05,19360.0,19359.0,1.26777821]
[1664630441352,9.664e-05,19360.0,19359.0,1.62558921]
[1664630441574,9.664e-05,19360.0,19359.0,2.88952721]
[1664630441817,9.664e-05,19360.0,19359.0,2.96752721]
[1664630442996,9.664e-05,19360.0,19359.0,2.88952721]
[1664630443214,9.664e-05,19360.0,19359.0,3.14780421]
[1664630443676,9.664e-05,19360.0,19359.0,2.78999321]
[1664630443980,9.664e-05,19360.0,19359.0,3.22580421]
[1664630444660,9.664e-05,19360.0,19359.0,2.86799321]
[1664630444896,9.664e-05,19360.0,19359.0,3.22580421]
[1664630445119,9.664e-05,19360.0,19359.0,3.14780421]
[1664630445792,9.664e-05,19360.0,19359.0,3.22580421]
[1664630446235,9.664e-05,19360.0,19359.0,3.23320421]
[1664630447159,9.664e-05,19360.0,19359.0,3.15520421]
[1664630447857,9.664e-05,19360.0,19359.0,4.64687782]
[1664630448083,9.664e-05,19360.0,19359.0,6.94687782]
[1664630448300,9.664e-05,19360.0,19359.0,6.64687782]
[1664630449070,9.664e-05,19360.0,19359.0,4.18520421]
[1664630449289,9.664e-05,19360.0,19359.0,3.53887782]
[1664630449751,9.664e-05,19360.0,19359.0,3.61787782]
[1664630450227,0.0022,19365.0,19364.0,0.05]
[1664630450448,0.0022,19365.0,19364.0,0.91954244]
[1664630450631,0.0022,19365.0,19364.0,0.51173144]
[1664630451781,0.0192,19365.0,19364.0,0.58673144]
[1664630452509,0.0192,19365.0,19364.0,0.94454244]
[1664630453090,0.0022,19365.0,19364.0,0.51173144]
[1664630453735,0.0192,19365.0,19364.0,0.58673144]
[1664630455148,0.0192,19365.0,19364.0,0.51173144]
[1664630455149,0.0022,19365.0,19364.0,0.51173144]
[1664630455821,0.0192,19365.0,19364.0,0.58673144]
[1664630457199,0.0004,19366.0,19365.0,1.05]
[1664630457429,0.0004,19366.0,19365.0,0.56173144]
[1664630457882,0.0084,19366.0,19365.0,0.63073144]
[1664630459809,0.0004,19366.0,19365.0,0.98425552]
[1664630460019,0.0084,19366.0,19365.0,2.07292413]
[1664630460243,0.0084,19366.0,19365.0,1.66511313]
[1664630460459,0.0084,19366.0,19365.0,0.80529405]
[1664630460913,0.0084,19366.0,19365.0,0.069]
[1664630460914,0.11506,19366.0,19365.0,0.069]
[1664630461136,0.494336,19366.0,19364.0,0.129174]
[1664630461347,0.58738507,19366.0,19364.0,0.129174]
[1664630461852,0.55069507,19366.0,19364.0,0.204174]
[1664630462302,0.22929379,19365.0,19364.0,0.204174]
[1664630462525,0.52929379,19365.0,19364.0,0.075]
[1664630462743,0.59798777,19365.0,19364.0,0.075]
[1664630463211,0.59798777,19365.0,19363.0,0.129183]
[1664630463212,0.98528277,19365.0,19363.0,0.129183]
[1664630463663,0.05,19364.0,19363.0,0.129183]
[1664630463882,0.14665888,19364.0,19363.0,0.193183]
[1664630464353,0.86118477,19365.0,19363.0,0.193183]
[1664630464354,1.37758077,19365.0,19363.0,0.193183]
[1664630464578,0.60298777,19365.0,19363.0,0.193183]
[1664630464791,0.69028677,19365.0,19363.0,0.193183]
[1664630465244,0.68528677,19365.0,19363.0,0.129183]
[1664630465957,0.69028677,19365.0,19363.0,0.193183]
[1664630466247,3.17106942,19373.0,19364.0,0.86954244]
[1664630466507,0.0022,19383.0,19381.0,0.38367361]
[1664630466778,0.0022,19383.0,19372.0,0.9]
[1664630466779,0.40603038,19386.0,19373.0,0.72338679]
[1664630466780,0.33777315,19386.0,19373.0,0.72338679]
[1664630467018,0.40224078,19387.0,19373.0,0.72338679]
[1664630467019,0.31765065,19385.0,19384.0,0.38367361]
[1664630467256,0.00433907,19387.0,19383.0,0.38367361]
[1664630467501,7.73517711,19389.0,19388.0,0.05]
[1664630467759,2.39982039,19389.0,19388.0,0.91898944]
[1664630468000,0.06058483,19394.0,19393.0,0.05]
[1664630468001,0.04038989,19394.0,19393.0,0.05]
[1664630468219,0.04038989,19397.0,19394.0,0.05]
[1664630468457,0.04038989,19397.0,19395.0,0.357258]
[1664630468458,0.02817545,19397.0,19395.0,0.357258]
[1664630468710,0.65212133,19398.0,19395.0,2.45]
[1664630468711,0.0403687,19398.0,19395.0,2.45]
[1664630468992,0.0403687,19398.0,19397.0,0.45025728]
[1664630468993,0.191287,19398.0,19397.0,0.45025728]
[1664630469210,0.191287,19398.0,19392.0,0.1]
[1664630469211,0.83392361,19397.0,19392.0,0.1]
[1664630469556,0.15,19395.0,19392.0,0.1]
[1664630469667,0.53367361,19395.0,19393.0,0.45533843]
[1664630469917,0.53367361,19395.0,19392.0,0.1]
[1664630469918,0.66008933,19397.0,19392.0,0.112]
[1664630470153,0.15,19395.0,19392.0,0.112]
[1664630470387,0.005,19394.0,19393.0,0.48]
[1664630470629,0.38367361,19393.0,19392.0,0.012]
[1664630470870,0.38367361,19393.0,19379.0,1.08308773]
[1664630470871,0.38367361,19391.0,19387.0,0.1]
[1664630471102,1.80493813,19390.0,19387.0,0.1]
[1664630471350,1.07362977,19389.0,19387.0,0.1]
[1664630471591,1.07362977,19389.0,19384.0,0.1]
[1664630471592,0.35483933,19388.0,19384.0,0.1]
[1664630471830,0.15,19386.0,19384.0,0.1]
[1664630472085,0.20483933,19386.0,19384.0,0.1]
[1664630472320,1.05878797,19387.0,19384.0,0.1]
[1664630472321,0.9636273,19387.0,19384.0,0.1]
[1664630472558,0.9636273,19387.0,19381.0,0.51173144]
[1664630472560,0.657059,19386.0,19381.0,0.61173144]
[1664630472787,0.71657077,19385.0,19381.0,0.1]
[1664630473027,2.64557194,19384.0,19381.0,0.1]
[1664630473333,0.20483933,19383.0,19381.0,0.1]
[1664630473577,0.15,19382.0,19381.0,0.1]
[1664630473799,0.005,19383.0,19381.0,0.1]
[1664630474032,0.15,19382.0,19381.0,0.1]
[1664630475221,0.155,19382.0,19381.0,0.1]
[1664630475681,0.005,19382.0,19381.0,0.96879044]
[1664630475946,0.005,19382.0,19381.0,1.06566948]
[1664630475947,0.084,19382.0,19381.0,1.06566948]
[1664630476179,0.084,19382.0,19381.0,1.11566948]
[1664630476876,0.24992433,19388.0,19381.0,4.98371133]
[1664630477159,0.20483933,19388.0,19385.0,0.1]
[1664630477393,0.20505747,19387.0,19385.0,0.1]
[1664630477876,0.20936491,19390.0,19387.0,0.05]
[1664630478095,0.20936491,19390.0,19389.0,0.05]
[1664630478322,0.07210964,19390.0,19389.0,0.05]
[1664630478547,0.42916864,19390.0,19389.0,0.05]
[1664630478767,0.43416864,19390.0,19389.0,0.05]
[1664630479008,0.43416864,19390.0,19385.0,1.00173143]
[1664630479237,0.24104523,19389.0,19385.0,0.61173144]
[1664630479495,0.20483933,19389.0,19386.0,0.59999999]